[Event "Late-Titled-Tuesday-Blitz-November-28-2023"]
[Site "Chess.com"]
[Date "2023.11.28"]
[Round "3"]
[White "paulachess"]
[Black "vladoboch"]
[Result "0-1"]
[WhiteElo "2172"]
[BlackElo "2428"]
[TimeControl "180+1"]
[EndTime "14:28:24 PST"]
[Termination "vladoboch won by checkmate"]

1. c4 {[%clk 0:03:00.9]} 1... e5 {[%clk 0:02:59.6]} 2. Nc3 {[%clk 0:03:00.1]}
2... Nf6 {[%clk 0:02:58.1]} 3. g3 {[%clk 0:02:58.6]} 3... c6 {[%clk 0:02:48.5]}
4. d4 {[%clk 0:02:58.3]} 4... exd4 {[%clk 0:02:43.2]} 5. Qxd4 {[%clk 0:02:59.2]}
5... d5 {[%clk 0:02:37.6]} 6. Bf4 {[%clk 0:02:56.7]} 6... Be7 {[%clk 0:02:30.5]}
7. Bg2 {[%clk 0:02:51.7]} 7... O-O {[%clk 0:02:28.4]} 8. cxd5 {[%clk 0:02:51.9]}
8... cxd5 {[%clk 0:02:25]} 9. Bxb8 {[%clk 0:02:42.1]} 9... Rxb8 {[%clk
0:02:20.5]} 10. Nf3 {[%clk 0:02:41.3]} 10... Qa5 {[%clk 0:01:53.3]} 11. O-O
{[%clk 0:02:32.9]} 11... h6 {[%clk 0:01:53.1]} 12. a3 {[%clk 0:02:30.6]} 12...
Bf5 {[%clk 0:01:51.1]} 13. Rfd1 {[%clk 0:02:28.1]} 13... Rbc8 {[%clk 0:01:47.7]}
14. Nxd5 {[%clk 0:02:14.3]} 14... Qxd5 {[%clk 0:01:41.9]} 15. Qxd5 {[%clk
0:02:14.4]} 15... Nxd5 {[%clk 0:01:42.8]} 16. Rxd5 {[%clk 0:02:14.8]} 16... Be6
{[%clk 0:01:43.7]} 17. Rd2 {[%clk 0:02:13.6]} 17... Rfd8 {[%clk 0:01:22.4]} 18.
Rxd8+ {[%clk 0:02:13.6]} 18... Bxd8 {[%clk 0:01:22.7]} 19. Nd4 {[%clk
0:02:13.5]} 19... Bf6 {[%clk 0:01:10.8]} 20. Nxe6 {[%clk 0:02:12.7]} 20... fxe6
{[%clk 0:01:11.7]} 21. Rb1 {[%clk 0:02:00.6]} 21... Rc2 {[%clk 0:01:07.4]} 22.
e3 {[%clk 0:01:55.6]} 22... b6 {[%clk 0:01:04]} 23. b3 {[%clk 0:01:55.8]} 23...
Kf7 {[%clk 0:00:54.5]} 24. Be4 {[%clk 0:01:53.4]} 24... Rc3 {[%clk 0:00:52.7]}
25. Bb7 {[%clk 0:01:43.3]} 25... Ke7 {[%clk 0:00:49.7]} 26. Ba6 {[%clk
0:01:41.6]} 26... Kd6 {[%clk 0:00:47.8]} 27. a4 {[%clk 0:01:36.8]} 27... Kc5
{[%clk 0:00:35.1]} 28. b4+ {[%clk 0:01:36.7]} 28... Kd5 {[%clk 0:00:35.6]} 29.
Rd1+ {[%clk 0:01:33.8]} 29... Ke4 {[%clk 0:00:34.4]} 30. Bb7+ {[%clk 0:01:29.7]}
30... Kf5 {[%clk 0:00:29.8]} 31. h3 {[%clk 0:01:16.6]} 31... Rc4 {[%clk
0:00:29.4]} 32. g4+ {[%clk 0:01:06.5]} 32... Kg5 {[%clk 0:00:28.2]} 33. b5
{[%clk 0:00:35.7]} 33... Rxa4 {[%clk 0:00:21.7]} 34. Kg2 {[%clk 0:00:36]} 34...
Rb4 {[%clk 0:00:19.8]} 35. Kg3 {[%clk 0:00:36.1]} 35... Rxb5 {[%clk 0:00:11.1]}
36. Be4 {[%clk 0:00:30.9]} 36... h5 {[%clk 0:00:08.6]} 37. f4+ {[%clk
0:00:30.6]} 37... Kh6 {[%clk 0:00:08.8]} 38. g5+ {[%clk 0:00:31.1]} 38... Bxg5
{[%clk 0:00:08.8]} 39. fxg5+ {[%clk 0:00:32]} 39... Rxg5+ {[%clk 0:00:07.7]} 40.
Kh2 {[%clk 0:00:30.7]} 40... Re5 {[%clk 0:00:07.8]} 41. Rd4 {[%clk 0:00:30.1]}
41... a5 {[%clk 0:00:07.7]} 42. Kg2 {[%clk 0:00:30.1]} 42... b5 {[%clk
0:00:07.6]} 43. Kf3 {[%clk 0:00:30.2]} 43... Kg5 {[%clk 0:00:05.8]} 44. Rd7
{[%clk 0:00:26.6]} 44... Kf6 {[%clk 0:00:05.4]} 45. Rb7 {[%clk 0:00:25.7]} 45...
a4 {[%clk 0:00:04.4]} 46. Ra7 {[%clk 0:00:25.8]} 46... g5 {[%clk 0:00:03.9]} 47.
Rh7 {[%clk 0:00:23.9]} 47... h4 {[%clk 0:00:03.9]} 48. Rh6+ {[%clk 0:00:23.5]}
48... Ke7 {[%clk 0:00:03.5]} 49. Rh7+ {[%clk 0:00:22.2]} 49... Kd6 {[%clk
0:00:03.6]} 50. Bd3 {[%clk 0:00:21.3]} 50... Kc5 {[%clk 0:00:03.7]} 51. e4
{[%clk 0:00:20.1]} 51... Kd4 {[%clk 0:00:03.4]} 52. Rd7+ {[%clk 0:00:16.2]}
52... Kc3 {[%clk 0:00:03.7]} 53. Be2 {[%clk 0:00:15.3]} 53... b4 {[%clk
0:00:03.7]} 54. Rc7+ {[%clk 0:00:15.3]} 54... Kb2 {[%clk 0:00:03.9]} 55. Bd3
{[%clk 0:00:15]} 55... a3 {[%clk 0:00:04]} 56. Rc2+ {[%clk 0:00:15.5]} 56... Kb3
{[%clk 0:00:04.4]} 57. Rc1 {[%clk 0:00:15.8]} 57... a2 {[%clk 0:00:04]} 58. Bc4+
{[%clk 0:00:15.2]} 58... Kb2 {[%clk 0:00:04.5]} 59. Bxa2 {[%clk 0:00:14.4]}
59... Kxc1 {[%clk 0:00:04.6]} 60. Bb3 {[%clk 0:00:14.5]} 60... Kb2 {[%clk
0:00:05]} 61. Bc4 {[%clk 0:00:15]} 61... Kc3 {[%clk 0:00:05.9]} 62. Ba2 {[%clk
0:00:14.7]} 62... b3 {[%clk 0:00:06.3]} 63. Bb1 {[%clk 0:00:15.2]} 63... Kb2
{[%clk 0:00:06.3]} 64. Bd3 {[%clk 0:00:15.5]} 64... Ra5 {[%clk 0:00:06]} 65. Ke3
{[%clk 0:00:15.6]} 65... Kc3 {[%clk 0:00:06.4]} 66. Bb1 {[%clk 0:00:15.1]} 66...
Ra1 {[%clk 0:00:06.7]} 67. Bd3 {[%clk 0:00:15.7]} 67... Re1+ {[%clk 0:00:07]}
68. Kf2 {[%clk 0:00:15.5]} 68... Kxd3 {[%clk 0:00:07.2]} 69. Kxe1 {[%clk
0:00:16.4]} 69... b2 {[%clk 0:00:07.7]} 70. Kd1 {[%clk 0:00:17.3]} 70... b1=Q#
{[%clk 0:00:08.4]} 0-1

[Event "Late-Titled-Tuesday-Blitz-November-28-2023"]
[Site "Chess.com"]
[Date "2023.11.28"]
[Round "3"]
[White "falzehope0"]
[Black "Hoshka"]
[Result "1/2-1/2"]
[WhiteElo "2359"]
[BlackElo "2137"]
[TimeControl "180+1"]
[EndTime "14:28:26 PST"]
[Termination "Game drawn by stalemate"]

1. d4 {[%clk 0:03:00.9]} 1... d5 {[%clk 0:02:51.5]} 2. e3 {[%clk 0:03:01.8]}
2... Nf6 {[%clk 0:02:50.2]} 3. Bd3 {[%clk 0:03:01.8]} 3... Bg4 {[%clk
0:02:47.2]} 4. Ne2 {[%clk 0:03:01.5]} 4... c5 {[%clk 0:02:44.6]} 5. c3 {[%clk
0:03:01.3]} 5... e6 {[%clk 0:02:44]} 6. Nd2 {[%clk 0:03:00.7]} 6... Nc6 {[%clk
0:02:43.3]} 7. f4 {[%clk 0:03:00.5]} 7... h5 {[%clk 0:02:36.7]} 8. O-O {[%clk
0:03:00.3]} 8... h4 {[%clk 0:02:36.2]} 9. Nf3 {[%clk 0:02:58.8]} 9... h3 {[%clk
0:02:35.3]} 10. g3 {[%clk 0:02:58.2]} 10... Be7 {[%clk 0:02:17.4]} 11. b3 {[%clk
0:02:49.3]} 11... cxd4 {[%clk 0:02:12.8]} 12. Nexd4 {[%clk 0:02:43.5]} 12... Qa5
{[%clk 0:01:57.7]} 13. Qe1 {[%clk 0:02:39.8]} 13... Ne4 {[%clk 0:01:47.8]} 14.
Bb2 {[%clk 0:02:36.2]} 14... Rc8 {[%clk 0:01:46.1]} 15. b4 {[%clk 0:02:21.2]}
15... Qd8 {[%clk 0:01:38.1]} 16. Nxc6 {[%clk 0:02:15]} 16... bxc6 {[%clk
0:01:34.8]} 17. Bxe4 {[%clk 0:02:09.8]} 17... dxe4 {[%clk 0:01:34.5]} 18. Ne5
{[%clk 0:02:09.8]} 18... Bf5 {[%clk 0:01:08.4]} 19. Rd1 {[%clk 0:02:03.8]} 19...
Qb6 {[%clk 0:01:04.4]} 20. g4 {[%clk 0:01:52.6]} 20... Bh7 {[%clk 0:00:51.3]}
21. g5 {[%clk 0:01:18.2]} 21... Bf5 {[%clk 0:00:50.1]} 22. Qe2 {[%clk
0:01:17.2]} 22... g6 {[%clk 0:00:48.3]} 23. a3 {[%clk 0:01:15.6]} 23... a5
{[%clk 0:00:46.8]} 24. Rd7 {[%clk 0:01:06.9]} 24... Rd8 {[%clk 0:00:41]} 25. Qd2
{[%clk 0:01:04.5]} 25... Rxd7 {[%clk 0:00:32.8]} 26. Qxd7+ {[%clk 0:01:03.7]}
26... Kf8 {[%clk 0:00:33.7]} 27. Nc4 {[%clk 0:00:59]} 27... Qb5 {[%clk
0:00:20.2]} 28. Qd4 {[%clk 0:00:58.2]} 28... Rh7 {[%clk 0:00:15.4]} 29. Rd1
{[%clk 0:00:51.2]} 29... Qd5 {[%clk 0:00:13.9]} 30. Qxd5 {[%clk 0:00:45.9]}
30... exd5 {[%clk 0:00:13.6]} 31. Nxa5 {[%clk 0:00:45.8]} 31... Bd7 {[%clk
0:00:12.6]} 32. Nb7 {[%clk 0:00:44.5]} 32... Rh8 {[%clk 0:00:11.1]} 33. c4
{[%clk 0:00:44.1]} 33... Rh4 {[%clk 0:00:08.6]} 34. cxd5 {[%clk 0:00:42.6]}
34... cxd5 {[%clk 0:00:08.6]} 35. Nc5 {[%clk 0:00:41]} 35... Bc6 {[%clk
0:00:07.9]} 36. Bd4 {[%clk 0:00:40.7]} 36... Rg4+ {[%clk 0:00:07.1]} 37. Kf1
{[%clk 0:00:38.4]} 37... Rg2 {[%clk 0:00:08]} 38. Rb1 {[%clk 0:00:29.4]} 38...
Bb5+ {[%clk 0:00:07.7]} 39. Ke1 {[%clk 0:00:27.9]} 39... Rg1+ {[%clk 0:00:07.7]}
40. Kd2 {[%clk 0:00:28.2]} 40... Rxb1 {[%clk 0:00:07.4]} 41. a4 {[%clk
0:00:26.7]} 41... Bc4 {[%clk 0:00:04.9]} 42. b5 {[%clk 0:00:26.3]} 42... Rb2+
{[%clk 0:00:04]} 43. Bxb2 {[%clk 0:00:25.6]} 43... Bxc5 {[%clk 0:00:04]} 44. Bd4
{[%clk 0:00:18.8]} 44... Bxd4 {[%clk 0:00:03.4]} 45. exd4 {[%clk 0:00:19.7]}
45... Ke8 {[%clk 0:00:03.9]} 46. b6 {[%clk 0:00:19.1]} 46... Kd7 {[%clk
0:00:03.6]} 47. a5 {[%clk 0:00:19.2]} 47... Kc6 {[%clk 0:00:03.5]} 48. Kc3
{[%clk 0:00:20.1]} 48... Ba6 {[%clk 0:00:03.3]} 49. Kb4 {[%clk 0:00:20.4]} 49...
e3 {[%clk 0:00:03.1]} 50. Kc3 {[%clk 0:00:21]} 50... e2 {[%clk 0:00:03]} 51. Kd2
{[%clk 0:00:21.2]} 51... Kb7 {[%clk 0:00:01.8]} 52. Ke1 {[%clk 0:00:21.5]} 52...
Bc4 {[%clk 0:00:01.9]} 53. Kd2 {[%clk 0:00:22]} 53... Ka6 {[%clk 0:00:02.2]} 54.
Ke1 {[%clk 0:00:22.4]} 54... Bb5 {[%clk 0:00:02.2]} 55. Kd2 {[%clk 0:00:22.9]}
55... Bc6 {[%clk 0:00:02.4]} 56. Ke1 {[%clk 0:00:23.3]} 56... Kxa5 {[%clk
0:00:03]} 57. b7 {[%clk 0:00:23.8]} 57... Bxb7 {[%clk 0:00:02.8]} 58. f5 {[%clk
0:00:24.7]} 58... gxf5 {[%clk 0:00:02.2]} 59. Kf2 {[%clk 0:00:25]} 59... Bc6
{[%clk 0:00:02.4]} 60. Ke1 {[%clk 0:00:25.9]} 60... Bb5 {[%clk 0:00:02.4]} 61.
Kf2 {[%clk 0:00:26.8]} 61... Kb4 {[%clk 0:00:02.7]} 62. Ke1 {[%clk 0:00:27.7]}
62... Kc3 {[%clk 0:00:03]} 63. g6 {[%clk 0:00:28.1]} 63... fxg6 {[%clk
0:00:02.6]} 64. Kf2 {[%clk 0:00:27.9]} 64... Kxd4 {[%clk 0:00:02.9]} 65. Ke1
{[%clk 0:00:28.3]} 65... Ke4 {[%clk 0:00:02.8]} 66. Kd2 {[%clk 0:00:29.2]} 66...
d4 {[%clk 0:00:02.9]} 67. Ke1 {[%clk 0:00:30.1]} 67... d3 {[%clk 0:00:02.9]} 68.
Kf2 {[%clk 0:00:31]} 68... f4 {[%clk 0:00:03.1]} 69. Ke1 {[%clk 0:00:31.2]}
69... f3 {[%clk 0:00:02.5]} 70. Kf2 {[%clk 0:00:30]} 70... d2 {[%clk 0:00:02.7]}
71. Kg3 {[%clk 0:00:29.8]} 71... e1=Q+ {[%clk 0:00:01.9]} 72. Kg4 {[%clk
0:00:29.9]} 72... Qg1+ {[%clk 0:00:02.1]} 73. Kh4 {[%clk 0:00:30.8]} 73... Qg2
{[%clk 0:00:01.7]} 1/2-1/2

[Event "Late-Titled-Tuesday-Blitz-November-28-2023"]
[Site "Chess.com"]
[Date "2023.11.28"]
[Round "3"]
[White "e4evr"]
[Black "zouchen6"]
[Result "1/2-1/2"]
[WhiteElo "2134"]
[BlackElo "2720"]
[TimeControl "180+1"]
[EndTime "14:28:37 PST"]
[Termination "Game drawn by repetition"]

1. e4 {[%clk 0:03:00]} 1... c5 {[%clk 0:02:54.5]} 2. Nf3 {[%clk 0:02:59.9]} 2...
d6 {[%clk 0:02:53.8]} 3. d4 {[%clk 0:03:00.5]} 3... cxd4 {[%clk 0:02:54.1]} 4.
Nxd4 {[%clk 0:03:01.4]} 4... Nf6 {[%clk 0:02:54.3]} 5. Nc3 {[%clk 0:03:01.2]}
5... a6 {[%clk 0:02:54.9]} 6. a4 {[%clk 0:03:01.4]} 6... g6 {[%clk 0:02:51.5]}
7. Be2 {[%clk 0:02:56.5]} 7... Bg7 {[%clk 0:02:51.8]} 8. Be3 {[%clk 0:02:56.9]}
8... O-O {[%clk 0:02:46.5]} 9. O-O {[%clk 0:02:53.6]} 9... Bd7 {[%clk
0:02:40.7]} 10. f3 {[%clk 0:02:49.1]} 10... Nc6 {[%clk 0:02:40.7]} 11. Qd2
{[%clk 0:02:49.1]} 11... Rc8 {[%clk 0:02:32]} 12. Nxc6 {[%clk 0:02:42.5]} 12...
Bxc6 {[%clk 0:02:27]} 13. a5 {[%clk 0:02:42.5]} 13... Nd7 {[%clk 0:02:21.6]} 14.
Bh6 {[%clk 0:02:37.1]} 14... Qc7 {[%clk 0:02:17.3]} 15. Bxg7 {[%clk 0:02:36.9]}
15... Kxg7 {[%clk 0:02:18.2]} 16. Rfd1 {[%clk 0:02:14.4]} 16... Nf6 {[%clk
0:02:15.3]} 17. Qd4 {[%clk 0:02:12.2]} 17... Rfd8 {[%clk 0:02:13.5]} 18. Bd3
{[%clk 0:02:04.4]} 18... e5 {[%clk 0:02:09.9]} 19. Qf2 {[%clk 0:02:01.4]} 19...
d5 {[%clk 0:02:07]} 20. exd5 {[%clk 0:02:00.8]} 20... Nxd5 {[%clk 0:02:07.4]}
21. Ne4 {[%clk 0:01:40.4]} 21... Nf4 {[%clk 0:02:04.2]} 22. Bf1 {[%clk
0:01:29.5]} 22... Rxd1 {[%clk 0:01:53.6]} 23. Rxd1 {[%clk 0:01:29.2]} 23... Bxe4
{[%clk 0:01:30.5]} 24. fxe4 {[%clk 0:01:28.8]} 24... Qxc2 {[%clk 0:01:23]} 25.
Qxc2 {[%clk 0:00:49.7]} 25... Rxc2 {[%clk 0:01:23.9]} 26. b4 {[%clk 0:00:49.9]}
26... Rb2 {[%clk 0:01:07.4]} 27. b5 {[%clk 0:00:49.5]} 27... axb5 {[%clk
0:01:08.3]} 28. Rd7 {[%clk 0:00:49.8]} 28... Ra2 {[%clk 0:01:07.7]} 29. Rxb7
{[%clk 0:00:49.1]} 29... Rxa5 {[%clk 0:01:07.1]} 30. Rxb5 {[%clk 0:00:46.1]}
30... Rxb5 {[%clk 0:00:56.3]} 31. Bxb5 {[%clk 0:00:47]} 31... Ne6 {[%clk
0:00:54.4]} 32. Kf2 {[%clk 0:00:44.8]} 32... Kf6 {[%clk 0:00:52.3]} 33. Ke3
{[%clk 0:00:43.6]} 33... Ke7 {[%clk 0:00:51.9]} 34. Bc4 {[%clk 0:00:43.4]} 34...
Nc5 {[%clk 0:00:50.8]} 35. g3 {[%clk 0:00:41.6]} 35... f5 {[%clk 0:00:39.2]} 36.
exf5 {[%clk 0:00:41.7]} 36... gxf5 {[%clk 0:00:40.1]} 37. Bg8 {[%clk 0:00:42.2]}
37... h6 {[%clk 0:00:40.1]} 38. Ba2 {[%clk 0:00:39.5]} 38... Kf6 {[%clk
0:00:39.9]} 39. Bb1 {[%clk 0:00:39.6]} 39... Ne6 {[%clk 0:00:39.1]} 40. Bc2
{[%clk 0:00:35.9]} 40... h5 {[%clk 0:00:26.7]} 41. Bd1 {[%clk 0:00:33.8]} 41...
h4 {[%clk 0:00:22.9]} 42. Be2 {[%clk 0:00:30.1]} 42... Kg5 {[%clk 0:00:10.8]}
43. Bc4 {[%clk 0:00:28.8]} 43... Nd4 {[%clk 0:00:10.4]} 44. Kf2 {[%clk 0:00:25]}
44... e4 {[%clk 0:00:08.8]} 45. Ba6 {[%clk 0:00:22.7]} 45... Nf3 {[%clk
0:00:06.4]} 46. Kg2 {[%clk 0:00:20.5]} 46... Ne1+ {[%clk 0:00:03.4]} 47. Kf2
{[%clk 0:00:20.5]} 47... Nc2 {[%clk 0:00:03.8]} 48. Kg2 {[%clk 0:00:20]} 48...
Nd4 {[%clk 0:00:04.4]} 49. Bb7 {[%clk 0:00:19.3]} 49... Ne6 {[%clk 0:00:04.7]}
50. Ba6 {[%clk 0:00:19.3]} 50... Ng7 {[%clk 0:00:05]} 51. Be2 {[%clk 0:00:19.1]}
51... Nh5 {[%clk 0:00:05.1]} 52. Kf2 {[%clk 0:00:16.5]} 52... Nf6 {[%clk
0:00:04.7]} 53. Bd1 {[%clk 0:00:15.8]} 53... h3 {[%clk 0:00:04.9]} 54. Be2
{[%clk 0:00:15.7]} 54... Ng4+ {[%clk 0:00:05.4]} 55. Kg1 {[%clk 0:00:11.1]}
55... Ne5 {[%clk 0:00:05.9]} 56. Bf1 {[%clk 0:00:10.3]} 56... Nf3+ {[%clk
0:00:03.5]} 57. Kf2 {[%clk 0:00:10.7]} 57... Kg4 {[%clk 0:00:03.6]} 58. Be2
{[%clk 0:00:10.8]} 58... f4 {[%clk 0:00:04.1]} 59. Bxf3+ {[%clk 0:00:10.5]}
59... exf3 {[%clk 0:00:04.2]} 60. gxf4 {[%clk 0:00:10.8]} 60... Kxf4 {[%clk
0:00:05.1]} 61. Kf1 {[%clk 0:00:10.5]} 61... Ke3 {[%clk 0:00:05.7]} 62. Ke1
{[%clk 0:00:11]} 62... Ke4 {[%clk 0:00:06.3]} 63. Kf2 {[%clk 0:00:11]} 63... Kf4
{[%clk 0:00:06.8]} 64. Kf1 {[%clk 0:00:11.5]} 64... Ke4 {[%clk 0:00:05.4]} 65.
Kf2 {[%clk 0:00:11.1]} 65... Kf4 {[%clk 0:00:05.5]} 1/2-1/2

[Event "Late-Titled-Tuesday-Blitz-November-28-2023"]
[Site "Chess.com"]
[Date "2023.11.28"]
[Round "3"]
[White "sakkikuska"]
[Black "Hilary46"]
[Result "0-1"]
[WhiteElo "2397"]
[BlackElo "2627"]
[TimeControl "180+1"]
[EndTime "14:28:43 PST"]
[Termination "Hilary46 won by resignation"]

1. e4 {[%clk 0:03:00.9]} 1... e5 {[%clk 0:02:59.7]} 2. Nf3 {[%clk 0:02:59]} 2...
Nc6 {[%clk 0:03:00]} 3. Bb5 {[%clk 0:02:56.9]} 3... a6 {[%clk 0:03:00.4]} 4.
Bxc6 {[%clk 0:02:57.2]} 4... dxc6 {[%clk 0:03:00.2]} 5. Nc3 {[%clk 0:02:58.1]}
5... f6 {[%clk 0:02:59.4]} 6. d4 {[%clk 0:02:58.3]} 6... exd4 {[%clk 0:03:00.3]}
7. Qxd4 {[%clk 0:02:58.4]} 7... Qxd4 {[%clk 0:03:00]} 8. Nxd4 {[%clk 0:02:59.3]}
8... c5 {[%clk 0:02:59.7]} 9. Nb3 {[%clk 0:02:58.8]} 9... Be6 {[%clk 0:03:00.3]}
10. Be3 {[%clk 0:02:58]} 10... b6 {[%clk 0:02:56.4]} 11. O-O-O {[%clk
0:02:56.6]} 11... Bd6 {[%clk 0:02:52.1]} 12. f4 {[%clk 0:02:39.4]} 12... O-O-O
{[%clk 0:02:51.2]} 13. Rhe1 {[%clk 0:02:39.1]} 13... Ne7 {[%clk 0:02:44.6]} 14.
g3 {[%clk 0:02:36.2]} 14... Nc6 {[%clk 0:02:39]} 15. Nd5 {[%clk 0:02:33.1]}
15... Nb4 {[%clk 0:02:33.8]} 16. Nxb4 {[%clk 0:02:28.3]} 16... cxb4 {[%clk
0:02:34.7]} 17. Nd4 {[%clk 0:02:28]} 17... Bf7 {[%clk 0:02:13.6]} 18. Nf5 {[%clk
0:02:26.5]} 18... Bf8 {[%clk 0:02:12.4]} 19. Rxd8+ {[%clk 0:02:19.9]} 19... Kxd8
{[%clk 0:02:13.3]} 20. Rd1+ {[%clk 0:02:05.7]} 20... Kc8 {[%clk 0:02:12.9]} 21.
Nd4 {[%clk 0:01:58.4]} 21... Kb7 {[%clk 0:02:04.8]} 22. e5 {[%clk 0:01:39.1]}
22... fxe5 {[%clk 0:02:03.6]} 23. fxe5 {[%clk 0:01:39]} 23... Bc5 {[%clk
0:02:00.7]} 24. Nf5 {[%clk 0:01:21]} 24... Bxe3+ {[%clk 0:01:57.1]} 25. Nxe3
{[%clk 0:01:21.9]} 25... Be6 {[%clk 0:01:41.3]} 26. Nd5 {[%clk 0:01:14.2]} 26...
a5 {[%clk 0:01:32.1]} 27. Nf4 {[%clk 0:01:13.6]} 27... Bg4 {[%clk 0:01:29.5]}
28. Re1 {[%clk 0:01:04.2]} 28... Re8 {[%clk 0:01:29.6]} 29. h3 {[%clk
0:01:02.3]} 29... Be6 {[%clk 0:01:26.6]} 30. b3 {[%clk 0:01:01]} 30... g5 {[%clk
0:01:23.3]} 31. Nxe6 {[%clk 0:00:55.6]} 31... Rxe6 {[%clk 0:01:24.2]} 32. Kd2
{[%clk 0:00:49.2]} 32... Kc6 {[%clk 0:01:24]} 33. Rf1 {[%clk 0:00:46.8]} 33...
Rxe5 {[%clk 0:01:15.2]} 34. Rf7 {[%clk 0:00:43.7]} 34... Rd5+ {[%clk 0:01:07.6]}
35. Ke2 {[%clk 0:00:43.6]} 35... h6 {[%clk 0:01:07.7]} 36. h4 {[%clk 0:00:36]}
36... gxh4 {[%clk 0:01:05.5]} 37. gxh4 {[%clk 0:00:36]} 37... Rh5 {[%clk
0:01:02.4]} 38. Rf4 {[%clk 0:00:34.2]} 38... Kd6 {[%clk 0:01:00.6]} 39. Kd3
{[%clk 0:00:33.6]} 39... Rd5+ {[%clk 0:00:49.1]} 40. Ke3 {[%clk 0:00:24.3]}
40... Rc5 {[%clk 0:00:47.3]} 41. Kd3 {[%clk 0:00:22.9]} 41... Ke6 {[%clk
0:00:45.5]} 42. Rf8 {[%clk 0:00:22.2]} 42... Rc3+ {[%clk 0:00:43.5]} 43. Kd2
{[%clk 0:00:21.9]} 43... Rh3 {[%clk 0:00:42.8]} 44. Rf4 {[%clk 0:00:21.8]} 44...
h5 {[%clk 0:00:38]} 45. Ke2 {[%clk 0:00:19.9]} 45... Ke5 {[%clk 0:00:36.7]} 46.
Rc4 {[%clk 0:00:17.3]} 46... c5 {[%clk 0:00:36.9]} 47. Kd2 {[%clk 0:00:17.6]}
47... Rh1 {[%clk 0:00:34.1]} 48. Ke3 {[%clk 0:00:18.2]} 48... Ra1 {[%clk
0:00:30.6]} 49. Re4+ {[%clk 0:00:17.5]} 49... Kd6 {[%clk 0:00:28.6]} 50. Kd2
{[%clk 0:00:16.8]} 50... Rxa2 {[%clk 0:00:28.1]} 51. Re1 {[%clk 0:00:17.3]}
51... a4 {[%clk 0:00:24.1]} 52. bxa4 {[%clk 0:00:17.3]} 52... Rxa4 {[%clk
0:00:23.8]} 53. Rg1 {[%clk 0:00:16.6]} 53... b3 {[%clk 0:00:22.3]} 54. cxb3
{[%clk 0:00:16.3]} 54... Rxh4 {[%clk 0:00:22.4]} 55. Rg6+ {[%clk 0:00:16.6]}
55... Kc7 {[%clk 0:00:22.3]} 56. Kc3 {[%clk 0:00:17.2]} 56... Rg4 {[%clk
0:00:20.2]} 57. Rh6 {[%clk 0:00:17.6]} 57... h4 {[%clk 0:00:20.7]} 58. Rh7+
{[%clk 0:00:17.7]} 58... Kc6 {[%clk 0:00:20.8]} 59. Rh6+ {[%clk 0:00:18.6]}
59... Kb5 {[%clk 0:00:21.2]} 60. Rh5 {[%clk 0:00:19]} 60... Rg3+ {[%clk
0:00:21.6]} 61. Kb2 {[%clk 0:00:19.1]} 61... h3 {[%clk 0:00:22.5]} 62. Rh4
{[%clk 0:00:19.2]} 62... Rf3 {[%clk 0:00:20.5]} 63. Ka3 {[%clk 0:00:17.5]} 63...
Ka5 {[%clk 0:00:14]} 64. Ra4+ {[%clk 0:00:16.4]} 64... Kb5 {[%clk 0:00:13.8]}
65. Rh4 {[%clk 0:00:17.3]} 65... Kc6 {[%clk 0:00:14.2]} 66. Rh6+ {[%clk
0:00:17.4]} 66... Kc7 {[%clk 0:00:12.9]} 67. Rh7+ {[%clk 0:00:17.6]} 67... Kd6
{[%clk 0:00:12.5]} 68. Rh6+ {[%clk 0:00:18.1]} 68... Ke5 {[%clk 0:00:13.1]} 69.
Rxb6 {[%clk 0:00:18.2]} 69... Kf4 {[%clk 0:00:11.6]} 70. Rh6 {[%clk 0:00:18.6]}
70... Kg3 {[%clk 0:00:11.5]} 71. Rh5 {[%clk 0:00:18.6]} 71... h2 {[%clk
0:00:10.1]} 72. Ka4 {[%clk 0:00:18.2]} 72... Kg2 {[%clk 0:00:09.9]} 73. Rg5+
{[%clk 0:00:18.4]} 73... Rg3 {[%clk 0:00:09.5]} 74. Rh5 {[%clk 0:00:18.9]} 74...
h1=Q {[%clk 0:00:09.2]} 75. Rxh1 {[%clk 0:00:18.3]} 75... Kxh1 {[%clk
0:00:10.1]} 76. b4 {[%clk 0:00:17.8]} 76... cxb4 {[%clk 0:00:09.7]} 77. Kxb4
{[%clk 0:00:18.7]} 77... Kg2 {[%clk 0:00:09.8]} 0-1